Cogmind - Beta 15 @@@ ROGUE MODE // 2025.08.10 @ 21:04:02 Player: f3-rnm Result: Destroyed by G-73 Enforcer with Phase Gun Performance ------------- Evolutions (9) 4500 Regions Visited (27) 5400 Robots Destroyed (334) 1670 Value Destroyed (14903) 14903 Prototype IDs (37) 740 Alien Tech Used (1) 200 Bonus (13724) 13724 TOTAL SCORE: 41137 Bonus ------- Pacifist 200 Triggered High Security 1000 High Alert Combat Kills 4364 Follower Combat Kills 5592 Entered Garrisons 200 Network Hubs Disabled 200 Registered with UFD 300 Met Optimus in HQ 500 Met Zhirov 300 Met R17 at Cetus 500 Met R17 at Research 2000 Scanned by Researcher 500 Friendly Fire -1932 Cogmind --------- Core Integrity 0/1600 Matter 299/300 Energy 38/100 System Corruption 25% Temperature Cool (0) Movement Flying (40) Location -1/Access Parts ------- > --- POWER (3) -------- (None) > --- PROPULSION (4) --- Q-thruster > --- UTILITY (12) ----- (None) > --- WEAPON (6) ------- (None) > --- INVENTORY (5) ---- Precision Matter Filter Enhanced Nova Cannon Peak State ------------ > --- POWER ------------ Light Antimatter Reactor Light Quantum Reactor Light Quantum Reactor > --- PROPULSION ------- Overtuned Huge Scrapsphere > --- UTILITY ---------- Scrap Suit Advanced Cryofiber Web Advanced Cryofiber Web Huge Storage Unit Spectral Analyzer Makeshift Salvage Targeting Computer Advanced Target Analyzer Experimental Reaction Control System Centrium Light Armor Plating Advanced Force Field > --- WEAPON ----------- Heavy Dispersion Rifle Coil Gun Overtuned Railgun Overtuned Railgun Overtuned Railgun > --- INVENTORY -------- Light Antimatter Reactor Scrap Suit Scrap Suit Improved Heat Sink Advanced Heat Sink Makeshift Coolant Network High-capacity Matter Pod Deep Structural Scanner Improved Cloaking Device Advanced Remote Force Field Improved Hacking Suite Improved Hacking Suite A0-MCA's Component Scanner Long-range Tractor Beam Mapping Drone Bay Transdimensional Reconstructor Heavy Shock Bomb Launcher Micro-nuke Launcher CPS Tube Powered Hammer Plasma Lance [Rating: 158] Favorites ----------- Power Light Antimatter Reactor Engine Deuterium Engine Power Core Light Fission Core Reactor Light Antimatter Reactor Propulsion Wheel Treads Light Treads Wheel Wheel Hover Unit Improved Gyrokinetic Inverter Flight Unit Q-thruster Utility Huge Storage Unit Device Scrap Suit Storage Huge Storage Unit Processor Spectral Analyzer Hackware Improved Hacking Suite Protection Hardened Medium Armor Plating Weapon Enhanced Autogun Energy Gun Advanced Variable Charge Gun Energy Cannon Long-range Proton Cannon Ballistic Gun Enhanced Autogun Ballistic Cannon Enhanced Gauss Cannon Launcher Mini Grenade Launcher Special Weapon Improved Remote Datajack Impact Weapon Powered Hammer Build | -11 -10 -10 -9 -9 -8 -8 -8 -8 -6 -6 -6 -5 -5 -5 -5 -5 -5 -4 -4 -4 -4 -4 -4 -3 -3 -2 -1 ------- Run | Yrd Mat Min Mat Min Mat Sto Rec Scr Fac Gar Fac Fac Was Fac Upp Upp Zhi Pro Fac Ext Cet Arc Hub Res Qua Res Acc Slots Evolved 18 | . . . 2 . 2 . . . 4 . . 2 . . . . . . 2 . . . . 2 . 2 2 Power 2 | . . . . . . . . . 1 . . . . . . . . . . . . . . 1 . . . Propulsion 2 | . . . . . . . . . . . . . . . . . . . . . . . . . . . 2 Utility 10 | . . . . . 2 . . . 3 . . 2 . . . . . . 1 . . . . 1 . 1 . Weapon 4 | . . . 2 . . . . . . . . . . . . . . . 1 . . . . . . 1 . Parts Attached 275 | 6 1 . 3 1 14 26 1 11 6 23 11 4 5 19 11 1 3 2 7 16 12 13 9 44 10 2 14 Power 44 | 1 . . . . 1 3 . 2 2 6 . . 1 2 3 . 1 . . 4 . 4 1 11 1 . 1 Engine 14 | 1 . . . . 1 3 . 1 2 2 . . . . . . . . . . . 2 . 2 . . . Core 12 | . . . . . . . . 1 . 3 . . . 2 3 . . . . 3 . . . . . . . Reactor 18 | . . . . . . . . . . 1 . . 1 . . . 1 . . 1 . 2 1 9 1 . 1 Propulsion 36 | 2 . . . . 2 9 . 2 . 2 1 1 . 2 1 . . . . . 2 . . 2 . 1 9 Treads 7 | 2 . . . . 2 1 . . . . . . . . . . . . . . . . . . . . 2 Leg . | . . . . . . . . . . . . . . . . . . . . . . . . . . . . Wheel 21 | . . . . . . 8 . 2 . 2 1 1 . 2 1 . . . . . 2 . . 2 . . . Hover 5 | . . . . . . . . . . . . . . . . . . . . . . . . . . 1 4 Flight 3 | . . . . . . . . . . . . . . . . . . . . . . . . . . . 3 Utility 107 | 1 1 . 1 1 3 6 1 4 4 6 6 3 3 8 3 1 2 . 3 8 3 7 4 19 6 1 2 Device 54 | . . . . . 1 2 . 3 2 3 3 . 1 3 1 1 1 . 3 4 3 3 3 11 3 1 2 Storage 6 | 1 . . 1 1 . . . . . . . 1 . . . . . . . . . . . 2 . . . Processor 16 | . 1 . . . . 2 . . 2 1 1 2 . 2 2 . . . . 1 . . . 2 . . . Hackware 6 | . . . . . . . . . . . 1 . . . . . . . . . . 2 1 . 2 . . Protection 25 | . . . . . 2 2 1 1 . 2 1 . 2 3 . . 1 . . 3 . 2 . 4 1 . . Artifact . | . . . . . . . . . . . . . . . . . . . . . . . . . . . . Weapon 88 | 2 . . 2 . 8 8 . 3 . 9 4 . 1 7 4 . . 2 4 4 7 2 4 12 3 . 2 Energy Gun 20 | . . . 1 . 2 . . . . 1 . . . 3 2 . . . 1 . 4 1 . 4 1 . . Energy Cannon 8 | . . . . . . . . . . . 2 . . 1 1 . . . 1 1 . . . . . . 2 Ballistic Gun 45 | 2 . . 1 . 3 7 . 3 . 6 . . 1 2 1 . . . 2 2 3 1 4 7 . . . Ballistic Cannon 4 | . . . . . . . . . . 1 1 . . . . . . 2 . . . . . . . . . Launcher 8 | . . . . . 2 1 . . . 1 1 . . 1 . . . . . . . . . . 2 . . Special Weapon 2 | . . . . . . . . . . . . . . . . . . . . 1 . . . 1 . . . Impact Weapon 1 | . . . . . 1 . . . . . . . . . . . . . . . . . . . . . . Slashing Weapon . | . . . . . . . . . . . . . . . . . . . . . . . . . . . . Piercing Weapon . | . . . . . . . . . . . . . . . . . . . . . . . . . . . . Special Melee Weapon . | . . . . . . . . . . . . . . . . . . . . . . . . . . . . Unidentified Prototypes 19 | . . . . . . 3 . 2 . . . . . 1 . . 3 . . 1 2 . . 6 . 1 . Corrupted Parts 4 | . . . . . . . . . . . . . . . . . . . . 1 1 . . . . . 2 System Corruption 36 | . . . . . . . . . . . . . . . . . . . . 7 9 . . . . . 20 Parts Lost 107 | . . . . . 5 11 . . . 10 8 . . 2 . . . . . 16 3 5 6 14 20 . 7 Power 21 | . . . . . . 1 . . . 5 . . . . . . . . . 4 1 1 1 4 3 . 1 Propulsion 14 | . . . . . 1 4 . . . . 2 . . 1 . . . . . . . . 1 1 . . 4 Utility 38 | . . . . . . 3 . . . 3 4 . . . . . . . . 6 1 4 3 5 7 . 2 Weapon 34 | . . . . . 4 3 . . . 2 2 . . 1 . . . . . 6 1 . 1 4 10 . . Highest Loss Streak 19 | . . . . . 2 11 . . . 5 2 . . 1 . . . . . 14 3 4 2 4 19 . 5 To Critical Strikes 3 | . . . . . . . . . . . 2 . . . . . . . . . 1 . . . . . . Average Backups 21 | 1 4 7 10 21 24 23 25 22 22 23 23 23 24 23 20 22 22 23 23 23 20 19 21 20 18 1 2 Power 1 | . 1 1 1 4 2 1 1 1 1 1 1 1 1 1 . 1 2 2 2 1 . . 1 1 . . . Propulsion 2 | 1 2 2 2 3 3 4 6 5 2 2 2 4 5 4 2 4 4 4 2 2 2 2 3 . . . 1 Utility 11 | . . 2 3 7 9 10 11 10 14 14 15 13 12 10 11 12 12 12 12 12 9 10 10 12 11 1 1 Weapon 4 | . 1 1 2 6 7 7 7 5 4 5 3 4 4 4 4 3 3 3 5 6 5 3 4 3 4 . . Tool/Special . | . . . . . . . . . . . . . . . . . . . . . . . . . . . . Unused Backups 144 | . . . 1 2 7 12 2 13 2 17 2 2 2 12 4 . . 2 4 4 2 11 13 21 8 . 1 Power 14 | . . . . . 3 1 . . . 2 1 . . 2 . . . . . 1 . 1 1 2 . . . Propulsion 35 | . . . . . 1 5 . 5 1 3 . . . 3 2 . . 1 1 1 2 2 2 5 . . 1 Utility 72 | . . . 1 2 1 4 2 7 1 10 1 2 2 6 2 . . 1 3 2 . 5 6 9 5 . . Weapon 20 | . . . . . 2 2 . 1 . 2 . . . 1 . . . . . . . 3 4 4 1 . . Tool/Special 3 | . . . . . . . . . . . . . . . . . . . . . . . . 1 2 . . Average Slot Usage (%) 83 | . 89 100 97 99 95 96 100 74 90 81 93 93 84 91 85 74 65 80 87 85 66 75 92 88 76 . 20 Engine 3 | . 14 14 11 11 8 8 9 7 13 3 . . . . . . . . . . . 2 5 1 . . . Core 2 | . . . . . . . . . . 6 6 5 1 2 7 11 7 5 5 4 . . . . . . . Reactor 3 | . . . . . . . . . . . 6 5 8 8 2 . 2 5 5 4 2 5 4 11 11 . 1 Treads 2 | . 28 28 22 21 17 2 . . . . . . . . . . . . . . . . . . . . . Wheel 9 | . . . . . . 15 18 17 13 13 12 11 11 11 8 5 5 5 5 5 6 10 9 4 3 . . Device 15 | . . . . . 5 12 22 14 18 16 16 5 2 12 24 21 17 17 21 21 17 4 10 23 21 . 5 Storage 6 | . 14 14 11 11 9 9 9 8 6 6 6 5 5 5 5 5 5 5 5 5 5 5 5 4 3 . . Processor 10 | . 3 14 11 11 9 5 . . 6 9 12 22 19 19 13 17 17 17 14 14 15 15 15 13 7 . . Protection 4 | . . . . . 9 6 4 8 6 5 3 5 4 5 . . 2 5 5 2 2 3 4 2 5 . . Energy Gun 3 | . . . 9 11 8 2 . . . 1 . . . 6 13 5 . . 2 4 4 8 4 4 4 . . Ballistic Gun 15 | . 28 28 31 32 25 33 36 16 25 12 17 11 13 8 3 . . . 5 12 9 15 20 17 14 . . Peak Build Rating 158 | 6 7 7 11 14 36 42 39 42 60 69 71 79 86 95 103 82 82 94 109 116 120 125 126 158 150 10 77 Average Rating 72 | 4 6 7 9 12 26 35 38 28 56 55 67 77 79 83 89 81 71 86 105 108 95 101 119 141 127 3 42 On Entrance 60 | . 6 7 7 11 14 36 39 38 42 59 69 70 77 82 95 78 79 82 94 108 79 120 115 112 149 3 10 Naked Turns 186 | . . . . . . . . 79 . . . . . . . . . . . . . . . . 70 36 1 Heaviest Build 189 | 12 12 12 49 89 110 110 113 113 128 130 137 137 173 180 138 123 122 140 154 163 132 165 165 189 173 . 36 Greatest Support 150 | 40 40 40 40 40 40 40 20 20 16 28 28 20 20 28 28 20 20 20 20 20 32 32 32 26 20 10 150 Greatest Overweight (x) 28 | . . . 1 28 2 10 5 10 7 7 17 7 8 8 6 6 6 6 7 8 6 5 8 9 8 . . Average Overweight (x) 4 | . . . . 1 2 4 5 4 7 4 5 6 7 6 4 6 5 6 6 6 4 3 4 7 4 . . Largest Inventory Capacity 25 | 8 8 8 20 25 25 25 25 25 25 25 25 25 25 25 25 25 25 25 25 25 25 25 25 25 25 5 5 Average Capacity 24 | 7 8 8 15 23 25 25 25 24 25 25 25 25 25 25 25 25 25 25 25 25 25 25 25 25 22 5 5 Most Carried 25 | 4 5 8 16 24 25 25 25 25 25 25 25 25 25 25 25 25 25 25 25 25 25 25 25 25 25 5 5 Average Carried 22 | 1 4 7 10 21 24 23 24 22 22 23 23 23 24 24 23 24 24 24 24 24 22 21 24 23 21 4 3 Final Capacity 25 | 8 8 8 20 25 25 25 25 25 25 25 25 25 25 25 25 25 25 25 25 25 25 25 25 25 5 5 5 Final Carried 25 | 4 5 8 16 24 25 25 25 23 25 25 22 25 25 25 23 25 25 25 25 24 25 22 25 23 4 5 2 Class Distribution -------------------- 22% | Scavenger-Gunner 15% | Scavenger-Tank 11% | Mutant 11% | Tank 10% | Gunner 9% | Scavenger-Mutant 8% | Scavenger-Scrapper 5% | Scavenger-Skirmisher 3% | Scrapper Dominant Class ---------------- Mutant | -10/Materials Mutant | -10/Mines Gunner | -9/Materials Gunner | -9/Mines Tank | -8/Materials Gunner | -8/Storage Tank | -8/Recycling Mutant | -8/Scraptown Tank | -6/Factory Scavenger-Tank | -6/Garrison Scavenger-Skirmisher | -6/Factory Scavenger-Skirmisher | -5/Factory Scavenger-Gunner | -5/Waste Scavenger-Gunner | -5/Factory Scavenger-Gunner | -5/Upper Caves Scavenger-Mutant | -5/Upper Caves Scavenger-Mutant | -5/Zhirov Scavenger-Mutant | -4/Proximity Caves Scavenger-Gunner | -4/Factory Scavenger-Gunner | -4/Extension Scavenger-Gunner | -4/Cetus Scavenger-Gunner | -4/Archives Scavenger-Gunner | -4/Hub_04(d) Scavenger-Scrapper | -3/Research Scavenger-Tank | -3/Quarantine Mutant | -2/Research Mutant | -1/Access Resources | -11 -10 -10 -9 -9 -8 -8 -8 -8 -6 -6 -6 -5 -5 -5 -5 -5 -5 -4 -4 -4 -4 -4 -4 -3 -3 -2 -1 ----------- Run | Yrd Mat Min Mat Min Mat Sto Rec Scr Fac Gar Fac Fac Was Fac Upp Upp Zhi Pro Fac Ext Cet Arc Hub Res Qua Res Acc Matter Collected 14773 | 206 . . 53 240 632 2189 54 811 168 1451 858 160 731 740 236 84 50 88 266 1062 301 978 796 1763 544 . 312 Remotely 1041 | . . . . . . . . . . . 588 . . . . . . . . 158 . . . . 295 . . Salvage Created 19257 | . . . . 61 1438 2330 54 . 187 866 636 160 1196 1923 343 84 114 14 257 3732 380 716 901 2397 1408 . 60 Parts 903 | . . . . 14 77 125 5 . 13 45 51 5 28 83 24 . . . 11 130 15 32 34 134 76 . 1 Haulers Intercepted 12 | . . . . . . 6 . . . . . . . 2 . . . . . 2 . . 2 . . . . Recyclers Shooed 6 | . . . . . 1 . . . . . . . . 1 . . . . . 1 . . . . 2 . 1 Parts Field Recycled . | . . . . . . . . . . . . . . . . . . . . . . . . . . . . Retrieved Matter . | . . . . . . . . . . . . . . . . . . . . . . . . . . . . Parts Self-Destructed 10 | . . . . . . . . . . . . . . . 8 2 . . . . . . . . . . . Prevented . | . . . . . . . . . . . . . . . . . . . . . . . . . . . . Kills | -11 -10 -10 -9 -9 -8 -8 -8 -8 -6 -6 -6 -5 -5 -5 -5 -5 -5 -4 -4 -4 -4 -4 -4 -3 -3 -2 -1 ------- Run | Yrd Mat Min Mat Min Mat Sto Rec Scr Fac Gar Fac Fac Was Fac Upp Upp Zhi Pro Fac Ext Cet Arc Hub Res Qua Res Acc Combat Hostiles Destroyed 230 | . . . . . 34 36 1 . 3 18 10 . 4 24 1 2 . 2 3 34 5 4 10 21 17 . 1 Melee 1 | . . . . . . . . . . . . . . . . . . 1 . . . . . . . . . Guns 148 | . . . . . 28 36 1 . 3 7 3 . 3 6 1 1 . . 1 5 4 4 10 21 14 . . Cannons 14 | . . . . . . . . . . 1 4 . 1 2 . . . 1 2 2 1 . . . . . . AOE 44 | . . . . . 6 . . . . 10 3 . . 12 . 1 . . . 9 . . . . 3 . . Classes Destroyed 26 | . . . . 2 8 6 . . . 3 1 . 1 1 . . . 1 . 1 . . . 1 1 . . Worker 18 | . . . . . 5 5 . . . . 2 . . 5 . . . . . . . . 1 . . . . Builder 19 | . . . . 2 . 1 . . . . 2 1 . 3 . . . . 1 1 . . 1 5 2 . . Tunneler 5 | . . . . 1 . . . . . . 2 . . 1 . . . . 1 . . . . . . . . Hauler 12 | . . . . . . 6 . . . . . . . 2 . . . . . 2 . . 2 . . . . Recycler 8 | . . . . . . 1 . . . . . 1 . 2 . . . . . 2 . . . 1 1 . . Mechanic 2 | . . . . . . . . . . . . . . . . . . . . 2 . . . . . . . Operator 13 | . . . . . . 1 . . . . . . . . . . . . . 2 . 9 . . 1 . . Drone 2 | . . . . . . . . . . . . . . . . . . 2 . . . . . . . . . Watcher 9 | . . . . . 1 1 . . . . . 1 . 2 . . . . 1 2 1 . . . . . . Swarmer 30 | . . . . . 8 4 . . . 3 . . . 10 1 1 . . . . . . . 3 . . . Grunt 84 | . . . . . 16 15 . . . 9 . . . 8 . 1 . . . 13 . . 8 5 9 . . Brawler 8 | . . . . . . 3 . . . . 2 . . 1 . . . . . 2 . . . . . . . Duelist 4 | . . . . . 1 1 . . . 1 . . . 1 . . . . . . . . . . . . . Protector 3 | . . . . . . 1 . . . . 1 . . . . . . . . 1 . . . . . . . Researcher 1 | . . . . . . . . . . . . . . . . . . . . . . . . . 1 . . Sentry 38 | . . . . . 2 8 1 . 2 1 2 . . 1 . . . . 1 13 . 4 . 2 1 . . Demolisher 7 | . . . . . . 5 . . . . . . . . . . . . . 1 . . . 1 . . . Specialist 12 | . . . . . 6 . . . 1 . 2 . . . . . . . . . . . . . 3 . . Hunter 12 | . . . . . . . . . . 2 1 . . 3 . . . . . 3 . . . 3 . . . Programmer 10 | . . . . . . . . . . . 1 . . . . . . . 2 . . . 2 . 4 . 1 Heavy 1 | . . . . . 1 . . . . . . . . . . . . . . . . . . . . . . Behemoth 4 | . . . . . . . . . . 2 1 . . . . . . . . 1 . . . . . . . Compactor 4 | . . . . . . . . . . . . . 4 . . . . . . . . . . . . . . Cetus Guard 5 | . . . . . . . . . . . . . . . . . . . . . 5 . . . . . . Striker 7 | . . . . . . . . . . . . . . . . . . . . . . . . 7 . . . Scrapoid 12 | . . . . . . . . . . . . . . 1 4 . . . . . . . . 7 . . . Botcube 2 | . . . . . . . . . . 1 . . . . . . . . . . . . . 1 . . . Thug 2 | . . . . . . 1 . . . . . . . . . . . . . 1 . . . . . . . Savage 1 | . . . . . . . . . . 1 . . . . . . . . . . . . . . . . . Best Kill Streak 21 | . . . . 1 10 19 1 . 3 8 4 2 1 9 1 2 . 2 3 21 3 2 7 4 4 . 1 Combat Bots Only 18 | . . . . . 10 17 1 . 3 8 3 . 1 6 1 2 . 2 1 18 2 2 6 4 4 . 1 Max Kills in Single Turn 7 | . . . . 1 6 2 1 . 1 3 3 2 1 6 1 1 . 1 2 7 1 1 1 2 2 . 1 Gunslinging 1 | . . . . . 1 1 . . . . . . . . . . . . . . . . . 1 1 . . Exploded 6 | . . . . . 6 . . . . 3 2 . . 5 . 1 . . . 5 . . . . 2 . . Melee 1 | . . . . . . . . . . . . . . . . . . 1 . . . . . . . . . Uniques/NPCs Destroyed 1 | . . . . . . . . . . . . . . . . . . . . . . . . 1 . . . Revision 17++ (-3/Research) Combat | -11 -10 -10 -9 -9 -8 -8 -8 -8 -6 -6 -6 -5 -5 -5 -5 -5 -5 -4 -4 -4 -4 -4 -4 -3 -3 -2 -1 -------- Run | Yrd Mat Min Mat Min Mat Sto Rec Scr Fac Gar Fac Fac Was Fac Upp Upp Zhi Pro Fac Ext Cet Arc Hub Res Qua Res Acc Hostile Shots Fired 1846 | . 10 . 10 3 116 134 . . 8 251 131 . . 99 8 9 . . 17 189 50 29 104 201 313 22 142 Missed 643 | . 1 . 5 1 47 41 . . 3 80 42 . . 29 1 6 . . 6 83 20 7 26 76 107 7 55 Hits 1203 | . 9 . 5 2 69 93 . . 5 171 89 . . 70 7 3 . . 11 106 30 22 78 125 206 15 87 Melee 22 | . . . . . . 2 . . . . . . . . . . . . . . . . . 20 . . . Projectile 1181 | . 9 . 5 2 69 91 . . 5 171 89 . . 70 7 3 . . 11 106 30 22 78 105 206 15 87 AOE 48 | . . . . . . 13 . . . . . . . . . . . . . 2 . . . 1 . . 32 Critical Strikes 57 | . 1 . 2 . 1 6 . . . 6 3 . . 2 . . . . . 3 4 . 7 7 11 1 3 Part Disruptions 2 | . . . . . . . . . . . . . . . . . . . 1 . . . . . 1 . . Damage Taken 24067 | . 74 . 91 56 1115 1807 . . 9 2678 1433 . . 1334 127 60 . . 437 2460 792 549 1679 2471 3641 382 2872 Core 4497 | . 16 . . 22 146 109 . . 2 360 101 . . 137 14 28 . . 116 296 108 21 94 299 709 296 1623 Absorbed by Shields 1519 | . . . . . . . . . 20 244 . . . . . . . . 60 150 . . . 917 65 . 63 Ignored by Resistances 145 | . . . . . 129 6 . . . . . . . 10 . . . . . . . . . . . . . Regen/Repaired (Parts) 783 | . . . . . . . . 280 149 12 . . . 22 50 . . . 97 13 . . . 89 69 . 2 Core Remaining (%) 68 | 100 . 93 . 94 . . . 53 . . 45 . . . . . . 82 . . . . 44 . 22 79 . Volleys Fired 771 | 1 . . 3 5 65 100 3 . 8 118 52 4 19 46 24 3 . 2 13 85 30 40 25 78 44 . 3 Largest 5 | 1 . . 4 4 4 4 4 . 4 4 4 4 4 4 4 2 . 1 4 5 3 5 5 5 5 . 1 Hottest 353 | 20 . . 100 100 175 175 100 . 96 134 172 172 168 223 279 146 . 81 219 258 148 269 274 353 234 . 120 Shots Fired 2397 | 1 . . 12 20 233 387 12 . 32 234 129 13 75 130 40 7 . 2 41 187 59 168 116 326 170 . 3 Gun 2145 | 1 . . 12 20 231 387 12 . 32 185 84 6 56 105 40 3 . . 17 129 51 168 116 325 165 . . Cannon 165 | . . . . . . . . . . 22 38 7 19 17 . 4 . 2 24 21 8 . . . . . 3 Launcher 58 | . . . . . 2 . . . . 27 7 . . 8 . . . . . 9 . . . . 5 . . Special 29 | . . . . . . . . . . . . . . . . . . . . 28 . . . 1 . . . Kinetic 1835 | 1 . . 9 15 189 382 12 . 32 193 99 9 56 61 5 . . . 35 89 49 117 102 259 121 . . Thermal 428 | . . . 3 5 42 5 . . . 14 16 . 19 57 35 . . . 6 61 2 51 14 66 29 . 3 Explosive 40 | . . . . . 2 . . . . 27 7 . . 1 . . . . . . . . . . 3 . . Electromagnetic 65 | . . . . . . . . . . . 7 4 . 11 . 7 . 2 . 9 8 . . . 17 . . Robot Hit Streak 26 | . . . 6 8 13 9 9 . 6 26 8 6 11 6 5 4 . 1 6 11 8 7 11 10 15 . 1 Robot Miss Streak 8 | . . . 2 1 4 3 4 . 2 4 3 4 2 5 8 3 . 1 5 7 4 8 4 5 4 . . Penetration Max 1 | . . . . . . . . . . . 1 1 . 1 . . . . . . 1 . 1 1 1 . . Secondary Targets 43 | . . . . . 5 17 . . . 4 . . . 2 . . . . . 1 2 . 3 7 2 . . Max Gunslinging Chain 1 | . . . . . 1 1 . . . 1 . . . 1 . . . . . 1 1 . 1 1 1 . . Shots Hit Robots 1302 | . . . 10 12 145 202 3 . 21 136 77 4 43 67 15 2 3 2 16 100 39 76 63 163 102 . 1 Core Hits 791 | . . . 3 4 87 101 2 . 8 72 40 5 15 74 7 3 . 1 9 147 25 31 36 72 49 . . Critical Kills 26 | . . . . . 1 3 . . . 1 . . . . 1 . . . 1 2 . 4 2 3 7 . 1 Critical Parts Destroyed 45 | . . . . . . 2 . . . 11 2 . . 2 2 . . . . . . 1 4 13 8 . . Critical Strikes 95 | . . . . . 2 5 . . . 14 3 . . 4 3 . . . 2 2 . 6 6 25 22 . 1 Burn 3 | . . . . . 1 . . . . . . . . 2 . . . . . . . . . . . . . Meltdown 3 | . . . . . . . . . . . . . . . . . . . . 2 . . . . . . 1 Destroy 81 | . . . . . 1 5 . . . 13 2 . . . 3 . . . 1 . . 6 6 25 19 . . Blast 3 | . . . . . . . . . . 1 1 . . . . . . . 1 . . . . . . . . Corrupt 3 | . . . . . . . . . . . . . . . . . . . . . . . . . 3 . . Smash 2 | . . . . . . . . . . . . . . 2 . . . . . . . . . . . . . Melee Attacks 26 | . . . . . 4 . . . . 6 . . . 10 . . 3 2 1 . . . . . . . . Impact 26 | . . . . . 4 . . . . 6 . . . 10 . . 3 2 1 . . . . . . . . Slashing . | . . . . . . . . . . . . . . . . . . . . . . . . . . . . Piercing . | . . . . . . . . . . . . . . . . . . . . . . . . . . . . Sneak Attacks 4 | . . . . . . . . . . . . . . 3 . . . 1 . . . . . . . . . Combat Hostiles 1 | . . . . . . . . . . . . . . . . . . 1 . . . . . . . . . Follow-up Attacks . | . . . . . . . . . . . . . . . . . . . . . . . . . . . . Damage Inflicted 41154 | . . . 115 134 2516 3831 61 . 345 3809 2855 231 1078 3051 465 234 317 180 636 6678 1455 1988 2223 5344 3545 8 55 Guns 26847 | . . . 115 134 2109 3831 61 . 345 1992 1108 70 726 1130 465 30 . . 309 1557 793 1988 2043 5344 2697 . . Cannons 2900 | . . . . . . . . . . 394 637 119 352 227 . 30 . 62 327 392 308 . . . . . 52 Explosions 10698 | . . . . . 405 . . . . 1423 1110 42 . 1433 . 174 . . . 4729 354 . 180 . 848 . . Melee 696 | . . . . . . . . . . . . . . 261 . . 317 118 . . . . . . . . . Ramming 13 | . . . . . 2 . . . . . . . . . . . . . . . . . . . . 8 3 Kinetic 22570 | . . . 83 100 1552 3774 61 . 345 1951 1421 100 726 515 20 . . . 502 1028 767 1372 1930 4342 1981 . . Thermal 7574 | . . . 32 34 557 57 . . . 435 147 42 352 879 445 174 . . 134 1503 380 616 113 1002 620 . 52 Explosive 3852 | . . . . . 405 . . . . 1423 1110 . . 314 . . . . . . . . . . 600 . . Electromagnetic 6449 | . . . . . . . . . . . 177 89 . 1082 . 60 . 62 . 4147 308 . 180 . 344 . . Impact 696 | . . . . . . . . . . . . . . 261 . . 317 118 . . . . . . . . . Slashing . | . . . . . . . . . . . . . . . . . . . . . . . . . . . . Piercing . | . . . . . . . . . . . . . . . . . . . . . . . . . . . . Highest Corruption 29 | . . . . . . 6 6 6 . . . . 18 19 19 19 19 19 6 20 29 29 18 1 11 . 25 Average Corruption 11 | . . . . . . 5 6 6 . . . . 14 18 19 19 19 19 1 8 21 19 16 1 4 . 22 Corruption Purged 14 | . . . . . . . . . . . . . . . . . . . . . . 13 . . 1 . . Corruption Blocked . | . . . . . . . . . . . . . . . . . . . . . . . . . . . . Effects 456 | . . . . . . 17 8 19 . . . . 15 67 59 20 10 15 4 51 33 79 29 15 9 . 6 Message Errors 108 | . . . . . . 2 1 8 . . . . 2 18 13 1 4 4 . 15 10 18 5 4 2 . 1 Matter Fused 111 | . . . . . . 5 2 3 . . . . 6 11 12 8 2 5 2 13 9 17 8 4 3 . 1 Heat Flow Errors 44 | . . . . . . 1 1 1 . . . . 1 8 8 2 . 2 . 3 4 10 1 . 2 . . Energy Discharges 51 | . . . . . . 2 . 2 . . . . . 10 10 4 1 . . 4 5 7 3 2 . . 1 Parts Rejected 10 | . . . . . . 1 . . . . . . 1 1 1 1 . . . 1 1 1 2 . . . . Parts Fused 5 | . . . . . . . . . . . . . . 1 1 . . . . . 1 1 1 . . . . Data Loss (minor) 54 | . . . . . . 1 3 4 . . . . 2 7 7 3 3 3 1 4 2 9 3 2 . . . Data Loss (major) 19 | . . . . . . 2 1 1 . . . . . 4 1 . . 1 1 2 . 3 1 2 . . . Misfires 17 | . . . . . . . . . . . . . 1 4 2 1 . . . 2 1 4 1 1 . . . Alerts 5 | . . . . . . . . . . . . . . 1 2 . . . . 2 . . . . . . . Misdirections 6 | . . . . . . . . . . . . . . . 1 . . . . 1 . 1 . . . . 3 Weapon Failures 26 | . . . . . . 3 . . . . . . 2 2 1 . . . . 4 . 8 4 . 2 . . Overload Shots 2 | . . . . . . . . . . . . . . . . . . . . 2 . . . . . . . Overflow Damage 690 | . . . . . 10 . . . . 10 27 12 . 238 . 3 98 88 . 64 37 . . . 66 . 37 Projectiles 102 | . . . . . . . . . . 2 18 5 . 17 . . . . . . 23 . . . . . 37 Explosions 181 | . . . . . 10 . . . . 8 9 7 . . . 3 . . . 64 14 . . . 66 . . Melee 407 | . . . . . . . . . . . . . . 221 . . 98 88 . . . . . . . . . Knockbacks 3 | . . . . . . . . . . 1 . . . 1 . . . . 1 . . . . . . . . Impact 1 | . . . . . . . . . . . . . . 1 . . . . . . . . . . . . . Kinetic 2 | . . . . . . . . . . 1 . . . . . . . . 1 . . . . . . . . Secondary . | . . . . . . . . . . . . . . . . . . . . . . . . . . . . Self-Inflicted Damage 833 | . . . . . . . . . . 169 164 . . 1 . . . . . 215 . . 92 . 189 3 . Shots 28 | . . . . . . . . . . 8 3 . . 1 . . . . . 12 . . 1 . 3 . . Rammed 4 | . . . . . 1 . . . . . . . . . . . . . . . . . . . . 2 1 Targets Rammed 4 | . . . . . 1 . . . . . . . . . . . . . . . . . . . . 2 1 Kicked . | . . . . . . . . . . . . . . . . . . . . . . . . . . . . Crushed . | . . . . . . . . . . . . . . . . . . . . . . . . . . . . Highest Temperature 429 | . . . 96 36 234 309 171 217 348 258 332 228 429 245 217 260 . 184 182 207 212 315 247 310 22 . 64 Average Temperature 93 | . . . 42 18 70 69 57 143 168 70 132 94 153 73 85 106 . 74 72 53 84 127 59 122 22 . 32 Received Heat Transfer 3250 | . . . 63 12 432 711 . . . 311 147 . . 219 . 9 . . . 454 . 18 409 70 287 99 9 Effects 8 | . . . . . . 1 . . . . 2 . 4 . . 1 . . . . . . . . . . . Shutdowns 2 | . . . . . . . . . . . 1 . 1 . . . . . . . . . . . . . . Energy Bleed 4 | . . . . . . 1 . . . . 1 . 1 . . 1 . . . . . . . . . . . Interference 1 | . . . . . . . . . . . . . 1 . . . . . . . . . . . . . . Short Circuit 1 | . . . . . . . . . . . . . 1 . . . . . . . . . . . . . . Siege Activations . | . . . . . . . . . . . . . . . . . . . . . . . . . . . . Martial Activations . | . . . . . . . . . . . . . . . . . . . . . . . . . . . . Shielding Activations . | . . . . . . . . . . . . . . . . . . . . . . . . . . . . Robots Disrupted 2 | . . . . . . . . . . . . . . 2 . . . . . . . . . . . . . Combat Hostiles 2 | . . . . . . . . . . . . . . 2 . . . . . . . . . . . . . Robots Corrupted 25 | . . . . . . . . . . . . . . 6 . . 1 . . 18 . . . . . . . Combat Hostiles 21 | . . . . . . . . . . . . . . 4 . . 1 . . 16 . . . . . . . Parts Fried 48 | . . . . . . . . . . . . . . 9 . . 1 1 . 37 . . . . . . . Impact Corruptions 9 | . . . . . . . . . . . . . . 5 . . 2 2 . . . . . . . . . Robots Melted 4 | . . . . . . . . . . . . . . 1 . . . . . 2 . . . . . . 1 Combat Hostiles 3 | . . . . . . . . . . . . . . . . . . . . 2 . . . . . . 1 Parts Melted 16 | . . . . . . . . . . . . . . 3 . . . . . 4 . . . 3 . . 6 Heat Transferred 10055 | . . . 75 75 1184 111 . . . 481 200 50 550 1740 387 100 . . 148 1906 287 740 148 1096 740 . 37 Parts Sabotaged . | . . . . . . . . . . . . . . . . . . . . . . . . . . . . Parts Stolen . | . . . . . . . . . . . . . . . . . . . . . . . . . . . . Parts Stripped . | . . . . . . . . . . . . . . . . . . . . . . . . . . . . Power Chain Reactions 10 | . . . . . . . . . . . . 1 . 1 . 1 . . . 5 1 . . . 1 . . Alert | -11 -10 -10 -9 -9 -8 -8 -8 -8 -6 -6 -6 -5 -5 -5 -5 -5 -5 -4 -4 -4 -4 -4 -4 -3 -3 -2 -1 ------- Run | Yrd Mat Min Mat Min Mat Sto Rec Scr Fac Gar Fac Fac Was Fac Upp Upp Zhi Pro Fac Ext Cet Arc Hub Res Qua Res Acc Maximum Alert Level 5 | . . . . . 2 3 1 . . 5 5 4 1 4 . . . . . 5 4 2 2 3 3 2 1 Low Security (%) 27 | 100 100 100 100 100 49 21 14 . 100 2 . . . 13 . . . . 100 43 . 4 64 20 . . 22 Level 1 16 | . . . . . 46 16 85 . . 4 . . 100 10 . . . . . 14 . 48 32 12 13 . 77 Level 2 24 | . . . . . 3 22 . . . 16 . . . 47 . . . . . 12 . 46 3 60 76 100 . Level 3 8 | . . . . . . 39 . . . 13 . 92 . 7 . . . . . 12 . . . 6 10 . . Level 4 9 | . . . . . . . . . . 15 17 8 . 21 . . . . . 7 100 . . . . . . Level 5 12 | . . . . . . . . . . 47 60 . . . . . . . . . . . . . . . . High Security 1 | . . . . . . . . . . . 22 . . . . . . . . 9 . . . . . . . Max Security . | . . . . . . . . . . . . . . . . . . . . . . . . . . . . Peak Influence 3242 | . . . 43 37 408 927 326 . 113 3242 2203 1100 359 1312 . . . . 98 2671 1557 588 408 717 838 462 264 Initial 1701 | . . . . . . 167 326 . . 58 1701 1100 359 157 . . . . . 34 1495 518 65 207 397 462 264 Average 701 | . . . 8 1 235 531 259 . 18 1603 1762 1068 296 615 . . . . 28 513 1427 384 158 374 542 456 219 Influence Increases 16038 | . . . 86 72 902 1478 21 . 113 3304 860 46 16 1769 182 66 5 10 246 3342 256 268 648 1320 887 . 141 Destroy 0b10 Robot/C 7180 | . . . 40 40 680 920 20 . 80 780 500 . . 880 120 60 . . 100 1440 160 80 240 660 360 . 20 Destroy 0b10 Robot/NC 515 | . . . 5 15 30 80 . . . 5 35 15 . 90 . . 5 10 20 80 10 45 20 30 20 . . Destroy Leader 1100 | . . . 22 10 142 174 . . 20 30 90 2 . 148 10 . . . 42 156 . . 44 160 40 . 10 Allied During Kill 2164 | . . . 11 7 . 164 . . 12 52 68 . . 248 52 6 . . 18 1319 25 . 6 176 . . . Successful Hack 94 | . . . 8 . . . . . . 35 . . . . . . . . 5 7 . . 18 . 21 . . Disable Machine 810 | . . . . . 15 60 . . . 30 90 15 . 120 . . . . 15 105 . 105 75 90 90 . . Anti-Garrison Action 2150 | . . . . . . . . . . 2150 . . . . . . . . . . . . . . . . . Destroy Structure 1380 | . . . . . 5 5 1 . 1 177 77 14 16 268 . . . . 46 190 46 38 200 174 116 . 6 Partial Spotted 15 | . . . . . . . . . . . . . . . . . . . . . . . . . 15 . . Lose Combat Pursuer 630 | . . . . . 30 75 . . . 45 . . . 15 . . . . . 45 15 . 45 30 225 . 105 Influence Decreases 15914 | . . . 86 72 504 1039 681 177 30 145 1899 1244 817 690 974 320 263 10 175 742 1632 1377 439 1008 772 380 438 Entered New Map 8331 | . . . . . . 231 511 177 . 25 1541 1124 667 68 484 98 258 . . 37 1176 777 121 188 310 360 178 Time Decay 5898 | . . . 86 52 454 498 170 . 30 . 278 120 150 522 490 222 5 10 175 375 326 550 238 695 262 20 170 Lost Part 1005 | . . . . . 50 110 . . . 100 80 . . 20 . . . . . 150 30 50 60 85 200 . 70 Lost Ally 680 | . . . . 20 . 200 . . . 20 . . . 80 . . . . . 180 100 . 20 40 . . 20 Squads Dispatched 72 | . . . 1 . 6 6 . . 2 . 9 1 . 10 . . . . 2 8 . . 3 11 10 . 3 Investigation 14 | . . . 1 . . 1 . . . . . . . 3 . . . . . 1 . . 2 5 1 . . Extermination 9 | . . . . . . . . . . . . 1 . 2 . . . . 2 . . . 1 . 2 . 1 Reinforcement 26 | . . . . . 6 . . . 1 . 2 . . 4 . . . . . 2 . . . 6 3 . 2 Assault 19 | . . . . . . 5 . . . . 7 . . 1 . . . . . 5 . . . . 1 . . Garrison 4 | . . . . . . . . . 1 . . . . . . . . . . . . . . . 3 . . Intercept . | . . . . . . . . . . . . . . . . . . . . . . . . . . . . Searches Triggered . | . . . . . . . . . . . . . . . . . . . . . . . . . . . . Construction Impeded 5 | . . . . . . . . . . . 1 . . 2 . . . . . . . . . . 2 . . Haulers Reinforced 4 | . . . . . . . . . . . . . . 2 . . . . . . . . . 2 . . . Active Scanning Responses . | . . . . . . . . . . . . . . . . . . . . . . . . . . . . Cargo Convoy Interrupts . | . . . . . . . . . . . . . . . . . . . . . . . . . . . . Stealth | -11 -10 -10 -9 -9 -8 -8 -8 -8 -6 -6 -6 -5 -5 -5 -5 -5 -5 -4 -4 -4 -4 -4 -4 -3 -3 -2 -1 --------- Run | Yrd Mat Min Mat Min Mat Sto Rec Scr Fac Gar Fac Fac Was Fac Upp Upp Zhi Pro Fac Ext Cet Arc Hub Res Qua Res Acc Distress Signals 24 | . . . 1 . 3 4 . . . . 1 . . 2 . . . . 2 1 1 . 1 6 2 . . Communications Jammed 79 | . . . . . . . . . . . 1 . . 6 . . . 1 . 67 . 1 1 2 . . . Distress Signals 75 | . . . . . . . . . . . 1 . . 4 . . . . . 67 . 1 . 2 . . . Times Spotted 467 | . 3 . 3 1 46 59 . . 4 36 30 1 7 35 6 3 . 1 6 79 11 12 18 43 40 3 20 Peak Tracking Total 30 | . 3 . 2 . 7 17 . . 2 7 6 1 3 6 4 3 . 1 2 30 5 1 6 7 14 3 14 Tactical Retreats 24 | . . . . . 2 3 . . . 2 . . 2 1 . . . . . 1 1 . 2 2 5 . 3 Traps | -11 -10 -10 -9 -9 -8 -8 -8 -8 -6 -6 -6 -5 -5 -5 -5 -5 -5 -4 -4 -4 -4 -4 -4 -3 -3 -2 -1 ------- Run | Yrd Mat Min Mat Min Mat Sto Rec Scr Fac Gar Fac Fac Was Fac Upp Upp Zhi Pro Fac Ext Cet Arc Hub Res Qua Res Acc Traps Triggered 26 | . . . 1 2 . 1 . . 1 8 . 1 . 1 . . . . 2 6 . . . 1 . . 2 Indirectly 1 | . . . . . . . . . . . . . . . . . . . . 1 . . . . . . . Trap Hack Attempts . | . . . . . . . . . . . . . . . . . . . . . . . . . . . . Triggered . | . . . . . . . . . . . . . . . . . . . . . . . . . . . . Disarmed . | . . . . . . . . . . . . . . . . . . . . . . . . . . . . Reprogrammed . | . . . . . . . . . . . . . . . . . . . . . . . . . . . . Reused . | . . . . . . . . . . . . . . . . . . . . . . . . . . . . Traps Extracted . | . . . . . . . . . . . . . . . . . . . . . . . . . . . . Installed . | . . . . . . . . . . . . . . . . . . . . . . . . . . . . Triggered . | . . . . . . . . . . . . . . . . . . . . . . . . . . . . Machines | -11 -10 -10 -9 -9 -8 -8 -8 -8 -6 -6 -6 -5 -5 -5 -5 -5 -5 -4 -4 -4 -4 -4 -4 -3 -3 -2 -1 ---------- Run | Yrd Mat Min Mat Min Mat Sto Rec Scr Fac Gar Fac Fac Was Fac Upp Upp Zhi Pro Fac Ext Cet Arc Hub Res Qua Res Acc Machines Disabled 62 | . . . . . 1 4 . . . 4 6 1 . 8 . . . . 1 11 . 7 5 7 7 . . Max in Single Turn 3 | . . . . . 1 1 . . . 1 2 1 . 1 . . . . 1 1 . 1 3 1 2 . . Garrison Access 2 | . . . . . . . . . . . . . . . . . . . 1 . . . . 1 . . . Garrison Relay 1 | . . . . . . . . . . 1 . . . . . . . . . . . . . . . . . Network Hub 1 | . . . . . . . . . . . . . . . . . . . . . . . 1 . . . . Energy Cycler 4 | . . . . . . . . . . . . . . . . . . . . 4 . . . . . . . Machines Repaired . | . . . . . . . . . . . . . . . . . . . . . . . . . . . . Machines Dismantled . | . . . . . . . . . . . . . . . . . . . . . . . . . . . . Machines Sabotaged . | . . . . . . . . . . . . . . . . . . . . . . . . . . . . Overloaded Fab Kills . | . . . . . . . . . . . . . . . . . . . . . . . . . . . . Hacking | -11 -10 -10 -9 -9 -8 -8 -8 -8 -6 -6 -6 -5 -5 -5 -5 -5 -5 -4 -4 -4 -4 -4 -4 -3 -3 -2 -1 --------- Run | Yrd Mat Min Mat Min Mat Sto Rec Scr Fac Gar Fac Fac Was Fac Upp Upp Zhi Pro Fac Ext Cet Arc Hub Res Qua Res Acc Machines Accessed 47 | . . . 1 1 1 3 . 2 4 4 1 1 . 3 1 . 4 . 3 6 . . 4 4 3 . 1 Terminals 27 | . . . 1 . 1 3 . . 2 4 1 1 . 1 . . . . . 5 . . 4 1 2 . 1 Fabricators . | . . . . . . . . . . . . . . . . . . . . . . . . . . . . Repair Stations 2 | . . . . . . . . . 1 . . . . . . . . . 1 . . . . . . . . Recycling Units 5 | . . . . . . . . . . . . . . 2 . . . . . 1 . . . 2 . . . Scanalyzers . | . . . . . . . . . . . . . . . . . . . . . . . . . . . . Garrison Access 5 | . . . . . . . . . 1 . . . . . . . . . 2 . . . . 1 1 . . Total Hacks 112 | . . . 1 1 4 6 . 23 9 6 2 2 . 4 1 . 17 . 5 9 . . 9 5 7 . 1 Successful 71 | . . . 1 1 1 2 . 23 3 3 2 . . 2 1 . 17 . 3 3 . . 3 4 2 . . Failed 41 | . . . . . 3 4 . . 6 3 . 2 . 2 . . . . 2 6 . . 6 1 5 . 1 Catastrophic 10 | . . . . . . . . . . 1 . . . 1 . . . . 1 3 . . . 1 2 . 1 Database Lockouts . | . . . . . . . . . . . . . . . . . . . . . . . . . . . . Manual 11 | . . . 1 . . 1 . . . . . . . 2 . . . . . 3 . . 1 3 . . . Terminals 48 | . . . 1 . 4 6 . . 2 6 2 2 . 2 . . . . . 7 . . 9 1 5 . 1 Fabricators . | . . . . . . . . . . . . . . . . . . . . . . . . . . . . Repair Stations 6 | . . . . . . . . . 4 . . . . . . . . . 2 . . . . . . . . Recycling Units 7 | . . . . . . . . . . . . . . 2 . . . . . 2 . . . 3 . . . Scanalyzers . | . . . . . . . . . . . . . . . . . . . . . . . . . . . . Garrison Access 9 | . . . . . . . . . 3 . . . . . . . . . 3 . . . . 1 2 . . Terminal Hacks 59 | . . . 1 1 1 2 . 23 . 3 2 . . . 1 . 17 . . 3 . . 2 1 2 . . Record 28 | . . . . . . . . 23 . . . . . . . . 5 . . . . . . . . . . Part Schematic 4 | . . . . . . . . . . . . . . . . . 4 . . . . . . . . . . Robot Analysis 4 | . . . . . . . . . . . . . . . . . 4 . . . . . . . . . . Prototype ID Bank 5 | . . . . . . . . . . . . . . . . . 4 . . 1 . . . . . . . Open Door 5 | . . . . 1 . 1 . . . 1 . . . . 1 . . . . 1 . . . . . . . Branch Access Points 1 | . . . 1 . . . . . . . . . . . . . . . . . . . . . . . . Emergency Access Points 2 | . . . . . . . . . . 1 . . . . . . . . . . . . 1 . . . . Machine Index 1 | . . . . . . . . . . . . . . . . . . . . . . . . . 1 . . Alert Level 6 | . . . . . . 1 . . . . 1 . . . . . . . . 1 . . 1 1 1 . . Recall Reinforcements 1 | . . . . . . . . . . . 1 . . . . . . . . . . . . . . . . Hauler Manifests 1 | . . . . . 1 . . . . . . . . . . . . . . . . . . . . . . Garrison Registry 1 | . . . . . . . . . . 1 . . . . . . . . . . . . . . . . . Fabricator Hacks . | . . . . . . . . . . . . . . . . . . . . . . . . . . . . Repair Station Hacks 4 | . . . . . . . . . 2 . . . . . . . . . 2 . . . . . . . . Scan Component 2 | . . . . . . . . . 1 . . . . . . . . . 1 . . . . . . . . Repair 2 | . . . . . . . . . 1 . . . . . . . . . 1 . . . . . . . . Recycling Unit Hacks . | . . . . . . . . . . . . . . . . . . . . . . . . . . . . Scanalyzer . | . . . . . . . . . . . . . . . . . . . . . . . . . . . . Garrison Access Hacks 3 | . . . . . . . . . 1 . . . . . . . . . 1 . . . . 1 . . . Unlock Access 1 | . . . . . . . . . 1 . . . . . . . . . . . . . . . . . . Seal Access 2 | . . . . . . . . . . . . . . . . . . . 1 . . . . 1 . . . Unauthorized Hacks 5 | . . . . . . . . . . . . . . 2 . . . . . . . . 1 2 . . . Terminals 1 | . . . . . . . . . . . . . . . . . . . . . . . 1 . . . . Sabotage 1 | . . . . . . . . . . . . . . . . . . . . . . . 1 . . . . Fabricators . | . . . . . . . . . . . . . . . . . . . . . . . . . . . . Repair Stations . | . . . . . . . . . . . . . . . . . . . . . . . . . . . . Recycling Units 4 | . . . . . . . . . . . . . . 2 . . . . . . . . . 2 . . . Scrapoids 4 | . . . . . . . . . . . . . . 2 . . . . . . . . . 2 . . . Scanalyzers . | . . . . . . . . . . . . . . . . . . . . . . . . . . . . Garrison Access . | . . . . . . . . . . . . . . . . . . . . . . . . . . . . Data Cores Recovered 2 | . . . . . . 1 . . . . . . . . . . . . . . . . . 1 . . . Used . | . . . . . . . . . . . . . . . . . . . . . . . . . . . . Hacking Detections 29 | . . . . . . 4 . . 3 4 1 1 . 1 . . . . 2 4 . . 4 2 2 . 1 Full Trace Events 4 | . . . . . . . . . . . . . . 1 . . . . . 1 . . 1 . 1 . . Feedback Events 1 | . . . . . . . . . . . . . . . . . . . . 1 . . . . . . . Corruption 1 | . . . . . . . . . . . . . . . . . . . . 1 . . . . . . . Feedback Blocked . | . . . . . . . . . . . . . . . . . . . . . . . . . . . . Robot Schematics Acquired . | . . . . . . . . . . . . . . . . . . . . . . . . . . . . Robots Built . | . . . . . . . . . . . . . . . . . . . . . . . . . . . . Authchips . | . . . . . . . . . . . . . . . . . . . . . . . . . . . . Time . | . . . . . . . . . . . . . . . . . . . . . . . . . . . . Total Robot Build Rating . | . . . . . . . . . . . . . . . . . . . . . . . . . . . . Part Schematics Acquired 4 | . . . . . . . . . . . . . . . . . 4 . . . . . . . . . . Parts Built . | . . . . . . . . . . . . . . . . . . . . . . . . . . . . Authchips . | . . . . . . . . . . . . . . . . . . . . . . . . . . . . Time . | . . . . . . . . . . . . . . . . . . . . . . . . . . . . Total Part Build Rating . | . . . . . . . . . . . . . . . . . . . . . . . . . . . . Parts Repaired 2 | . . . . . . . . . 1 . . . . . . . . . 1 . . . . . . . . Time 98 | . . . . . . . . . 30 . . . . . . . . . 68 . . . . . . . . Parts Recycled . | . . . . . . . . . . . . . . . . . . . . . . . . . . . . Recycled Matter . | . . . . . . . . . . . . . . . . . . . . . . . . . . . . Retrieved Matter . | . . . . . . . . . . . . . . . . . . . . . . . . . . . . Retrieved Components . | . . . . . . . . . . . . . . . . . . . . . . . . . . . . Parts Scanalyzed . | . . . . . . . . . . . . . . . . . . . . . . . . . . . . Part Schematics Acquired . | . . . . . . . . . . . . . . . . . . . . . . . . . . . . Parts Damaged . | . . . . . . . . . . . . . . . . . . . . . . . . . . . . Bothacking | -11 -10 -10 -9 -9 -8 -8 -8 -8 -6 -6 -6 -5 -5 -5 -5 -5 -5 -4 -4 -4 -4 -4 -4 -3 -3 -2 -1 ------------ Run | Yrd Mat Min Mat Min Mat Sto Rec Scr Fac Gar Fac Fac Was Fac Upp Upp Zhi Pro Fac Ext Cet Arc Hub Res Qua Res Acc Used RIF Installer . | . . . . . . . . . . . . . . . . . . . . . . . . . . . . Robots Hacked 1 | . . . . . . . . . . . . . . . . . . . . 1 . . . . . . . Non-combat 1 | . . . . . . . . . . . . . . . . . . . . 1 . . . . . . . Combat . | . . . . . . . . . . . . . . . . . . . . . . . . . . . . Robot Hacks Applied 1 | . . . . . . . . . . . . . . . . . . . . 1 . . . . . . . find_recycling 1 | . . . . . . . . . . . . . . . . . . . . 1 . . . . . . . Relay Couplers Released 5 | . . . . . . . . . . 5 . . . . . . . . . . . . . . . . . Machine Destruction 5 | . . . . . . . . . . 5 . . . . . . . . . . . . . . . . . Fabnet Peak Effective % . | . . . . . . . . . . . . . . . . . . . . . . . . . . . . Robots Rewired 13 | . . . . . . . . . . 3 . . . . . . . . . 10 . . . . . . . Allies Hacked 2 | . . . . . . . . . . . . . . 1 . . . . . 1 . . . . . . . Hacks Repelled . | . . . . . . . . . . . . . . . . . . . . . . . . . . . . Allies | -11 -10 -10 -9 -9 -8 -8 -8 -8 -6 -6 -6 -5 -5 -5 -5 -5 -5 -4 -4 -4 -4 -4 -4 -3 -3 -2 -1 -------- Run | Yrd Mat Min Mat Min Mat Sto Rec Scr Fac Gar Fac Fac Was Fac Upp Upp Zhi Pro Fac Ext Cet Arc Hub Res Qua Res Acc Total Allies 60 | . . 3 . . . 12 . 1 . 4 . . . 10 1 . . . . 16 . 1 . 11 . . 1 Largest Group 15 | . . 3 3 3 2 10 . 1 1 3 1 1 1 6 4 1 1 1 1 15 5 1 1 5 . . 1 Highest-Rated Group 836 | . . 40 40 40 24 173 . 84 84 226 141 127 127 350 188 122 122 122 122 836 214 147 147 323 . . 37 Highest-Rated Ally 159 | . . 16 16 16 16 31 . 84 84 141 141 127 127 115 122 122 122 122 122 159 51 147 147 137 . . 37 Total Orders 36 | . . . . 2 . 2 . 2 . 10 1 . . . 3 . 1 . . 6 . . 1 6 2 . . STAY 18 | . . . . 1 . 1 . 1 . 6 . . . . 2 . 1 . . 3 . . . 3 . . . ROAM 1 | . . . . . . . . . . 1 . . . . . . . . . . . . . . . . . FOLLOW 11 | . . . . 1 . 1 . 1 . 3 . . . . 1 . . . . 3 . . . 1 . . . RETURN 6 | . . . . . . . . . . . 1 . . . . . . . . . . . 1 2 2 . . Ally Attacks 716 | . . . 16 6 3 56 . . 5 46 45 . 35 97 24 2 . 2 10 232 13 . 5 119 . . . Total Damage 20072 | . . . 211 98 36 797 . . 219 1926 1216 . 602 2698 441 157 . 40 640 7412 313 . 423 2843 . . . Kills 153 | . . . 3 2 . 11 . . 1 21 16 . 1 25 5 1 . . 3 44 4 . 2 14 . . . Allies Corrupted 2 | . . . . . . . . . . . . . . 1 . . . . . 1 . . . . . . . Allies Melted 1 | . . . . . . . . . . . . . . . . . . . . . . . 1 . . . . Intel | -11 -10 -10 -9 -9 -8 -8 -8 -8 -6 -6 -6 -5 -5 -5 -5 -5 -5 -4 -4 -4 -4 -4 -4 -3 -3 -2 -1 ------- Run | Yrd Mat Min Mat Min Mat Sto Rec Scr Fac Gar Fac Fac Was Fac Upp Upp Zhi Pro Fac Ext Cet Arc Hub Res Qua Res Acc Active Infowar (turns) 19720 | . . . . . . . . 3 346 4895 775 250 312 1451 1281 463 203 295 864 1423 722 1598 515 3833 490 . 1 Optics 19716 | . . . . . . . . . 346 4895 775 250 312 1451 1281 463 203 295 864 1423 722 1598 515 3833 490 . . Sensors 1473 | . . . . . . . . 3 . . 587 234 37 300 33 . . . . 278 . . . . . . 1 Structural 1100 | . . . . . . . . . . . . . . . . . . . . . . . . 1100 . . . Seismic 4458 | . . . . . . . . . 322 . 1 . . . 1248 463 203 295 864 1062 . . . . . . . Machine Analysis 1548 | . . . . . . . . . . . . 235 173 1140 . . . . . . . . . . . . . Jamming 11391 | . . . . . . . . . . 4274 529 . . 347 1281 463 203 295 864 1385 7 694 515 534 . . . Robot Analysis Total 4 | . . . . . . . . . . . . . . . . . 4 . . . . . . . . . . Derelict Logs Recovered 4 | . . . . 1 . . . . . . . . . . 2 1 . . . . . . . . . . . Drone Launches 18 | . . . . . . . . . . . 3 . . . . . . . . . . . 3 6 6 . . Drone Recoveries 18 | . . . . . . . . . . . 3 . . . . . . . . . . . 3 6 6 . . Exploration | -11 -10 -10 -9 -9 -8 -8 -8 -8 -6 -6 -6 -5 -5 -5 -5 -5 -5 -4 -4 -4 -4 -4 -4 -3 -3 -2 -1 ------------- Run | Yrd Mat Min Mat Min Mat Sto Rec Scr Fac Gar Fac Fac Was Fac Upp Upp Zhi Pro Fac Ext Cet Arc Hub Res Qua Res Acc Turns Passed 29069 | 92 97 112 354 1156 1163 1337 351 4220 359 4895 775 250 312 1451 1281 463 203 295 864 1423 722 1598 515 3833 560 40 348 Spaces Moved 15680 | 53 60 69 161 392 270 646 220 2883 202 2931 375 137 113 682 766 347 153 214 521 830 436 503 226 1505 340 70 575 Core 409 | 6 . . . 1 . . . 149 . . . . . . . . . . . . . . . . 141 69 43 Treads 1008 | 47 60 69 161 391 270 4 . . . . . . . . . . . . . . . . . . . . 6 Legs . | . . . . . . . . . . . . . . . . . . . . . . . . . . . . Wheels 13736 | . . . . . . 642 220 2734 202 2931 375 137 113 682 766 347 153 214 521 830 436 503 226 1505 199 . . Hover 491 | . . . . . . . . . . . . . . . . . . . . . . . . . . 1 490 Flight 36 | . . . . . . . . . . . . . . . . . . . . . . . . . . . 36 Fastest Speed 37 | 50 160 160 160 240 320 145 155 50 140 130 145 159 170 155 110 130 120 130 130 110 110 150 170 140 50 40 37 Average Speed 150 | 147 160 160 205 286 321 162 155 140 140 146 160 165 189 178 142 130 120 130 139 134 127 164 173 163 103 49 47 Slowest Speed 1450 | 160 160 160 240 1450 325 325 155 230 140 155 240 170 200 200 155 130 130 130 140 150 150 190 250 250 150 50 180 Overloaded Moves . | . . . . . . . . . . . . . . . . . . . . . . . . . . . . Propulsion Burnouts . | . . . . . . . . . . . . . . . . . . . . . . . . . . . . Robots Hopped 8 | . . . . . . . . . . 1 . . . . . . . . . . . . . . . . 7 Potential Cave-ins 11 | . . . . . . . . . . . . . . . . . . . . . . . . 2 . . 9 Cave-ins Triggered . | . . . . . . . . . . . . . . . . . . . . . . . . . . . . Exploration Rate (%) 42 | 4 18 21 18 56 33 90 42 85 6 94 17 3 81 19 61 67 61 48 11 84 71 91 19 21 38 3 17 Regions Visited 27 Branch Regions 14 Pre-discovered Areas 6 | . . . . . . . . 3 . . . . . . . . 3 . . . . . . . . . . Known Exits Taken 17 | . 1 1 1 1 1 . . 1 1 . 1 . . 1 . . . 1 1 1 1 1 1 1 . 1 . Unknown Exits Taken 7 | 1 . . . . . 1 1 . . . . . . . 1 1 1 . . . . . . . 1 . . Scrap Searched 12 | . . . . 1 . . . 6 . . . . . . 2 2 . 1 . . . . . . . . . Spaces Dug 43 | . . . . . 4 . . . . 12 5 . . 6 2 . . 1 1 . . . 4 6 . . 2 Terrain Destroyed 731 | . . . . . 4 . . . . 95 61 11 7 33 5 . . 1 17 57 16 27 196 113 86 . 2 Melee 16 | . . . . . 4 . . . . 4 . . . 6 . . . 1 1 . . . . . . . . Projectile 288 | . . . . . . . . . . 15 11 . 7 6 5 . . . 16 17 . 27 34 113 35 . 2 AOE 425 | . . . . . . . . . . 74 50 11 . 21 . . . . . 40 16 . 162 . 51 . . Terrain Rammed . | . . . . . . . . . . . . . . . . . . . . . . . . . . . . Walls Destroyed . | . . . . . . . . . . . . . . . . . . . . . . . . . . . . Machines Disabled . | . . . . . . . . . . . . . . . . . . . . . . . . . . . . Actions | -11 -10 -10 -9 -9 -8 -8 -8 -8 -6 -6 -6 -5 -5 -5 -5 -5 -5 -4 -4 -4 -4 -4 -4 -3 -3 -2 -1 --------- Run | Yrd Mat Min Mat Min Mat Sto Rec Scr Fac Gar Fac Fac Was Fac Upp Upp Zhi Pro Fac Ext Cet Arc Hub Res Qua Res Acc Total 19871 | 63 61 71 178 414 414 845 228 3069 265 3364 467 153 181 819 941 353 167 226 625 1010 556 1177 282 2763 470 74 635 Wait 2153 | . . . . . 32 11 . 49 30 123 15 . 23 13 88 . . . 66 27 9 571 3 1005 58 . 30 Move 15641 | 52 59 68 160 391 269 645 219 2882 202 2928 374 137 112 681 765 346 152 213 520 829 435 502 225 1504 339 70 562 Hop 7 | . . . . . . . . . . 1 . . . . . . . . . . . . . . . . 6 Pick Up 343 | 4 1 3 11 11 15 27 2 52 6 35 4 5 6 13 18 3 2 4 7 6 26 21 7 49 2 . 3 Fast Attach 183 | 6 1 . . 3 1 12 1 17 3 12 3 1 3 12 7 . 4 2 5 12 14 12 8 26 5 2 11 Attach 108 | . . . 2 . 7 10 . 7 3 11 6 1 2 3 3 1 2 . . 5 8 7 4 16 7 . 3 Detach 18 | . . . . . . . . 2 1 6 1 . 1 . . . . . . 1 . . 2 1 1 1 1 Swap 118 | . . . 1 1 10 9 . 3 1 15 10 3 3 18 3 . . . 4 12 . . 2 15 8 . . Drop 391 | . . . 1 3 10 31 3 57 3 40 2 2 12 22 33 . 4 3 9 9 34 24 6 69 6 . 8 Fire 771 | 1 . . 3 5 65 100 3 . 8 118 52 4 19 46 24 3 . 2 13 85 30 40 25 78 44 . 3 Melee 26 | . . . . . 4 . . . . 6 . . . 10 . . 3 2 1 . . . . . . . . Ram 1 | . . . . . . . . . . . . . . . . . . . . . . . . . . 1 . Kick . | . . . . . . . . . . . . . . . . . . . . . . . . . . . . Crush 2 | . . . . . 1 . . . . . . . . . . . . . . . . . . . . . 1 Escape Stasis 79 | . . . . . . . . . 8 40 . . . . . . . . . 24 . . . . . . 7 Rewire 30 | . . . . . . . . . . 29 . . . 1 . . . . . . . . . . . . . Trap . | . . . . . . . . . . . . . . . . . . . . . . . . . . . . Miscellaneous . | . . . . . . . . . . . . . . . . . . . . . . . . . . . . Route ------- -11/Scrapyard -10/Materials -10/Mines -9/Materials -9/Mines -8/Materials -8/Storage (discovered 2 exits: [*Fac] / [*Rec]) -8/Recycling -8/Scraptown (discovered 2 exits: *Fac x2) -6/Factory (discovered 7 exits: Fac x4 / Low x2 / Gar) -6/Garrison (discovered 3 exits: *Fac x3) -6/Factory -5/Factory -5/Waste -5/Factory (discovered 2 exits: *Fac / *Upp) -5/Upper Caves -5/Upper Caves -5/Zhirov -4/Proximity Caves -4/Factory -4/Extension (discovered 3 exits: *Res x2 / *Cet) -4/Cetus (discovered 2 exits: *Res / *Arc) -4/Archives (discovered 3 exits: *Res / *Hub x2) -4/Hub_04(d) -3/Research -3/Quarantine -2/Research -1/Access History --------- Turn | Location | Event 3 | -11/Scrapyard | Discovered new exit (range 15) 93 | -11/Scrapyard | Entered Materials 134 | -10/Materials | Discovered new exit (range 16) 189 | -10/Materials | Identified exit to Mines 190 | -10/Materials | Entered Mines 207 | -10/Mines | Met a Derelict bent on vengeance 261 | -10/Mines | Discovered new exit (range 7) 272 | -10/Mines | Identified exit to Materials 285 | -10/Mines | Assisted by bots powering up and referring to "LRC-V3" 301 | -10/Mines | Build established: Mutant 302 | -10/Mines | Entered Materials 302 | -9/Materials | Accompanied by 3 allies 302 | -9/Materials | Evolved 2 slots: Weapon x2 329 | -9/Materials | Identified exit to Mines 639 | -9/Materials | Build established: Gunner 656 | -9/Materials | Entered Mines 656 | -9/Mines | Accompanied by 3 allies 921 | -9/Mines | A weapon hastily lodged in a ceiling crevice suddenly fell to the ground 1070 | -9/Mines | Received a Rocket Launcher from a helpful Derelict 1095 | -9/Mines | Met a Derelict who couldn't figure out how to use a Trap Extractor 1314 | -9/Mines | Discovered new exit (range 9) 1808 | -9/Mines | Identified exit to Materials 1812 | -9/Mines | Entered Materials 1812 | -8/Materials | Accompanied by 2 allies 1812 | -8/Materials | Evolved 2 slots: Utility x2 1813 | -8/Materials | Identified exit to Storage 1908 | -8/Materials | Destroyed 10 combat bots 2153 | -8/Materials | Build established: Tank 2515 | -8/Materials | Destroyed 8 combat bots 2899 | -8/Materials | Build established: Scavenger-Tank 2975 | -8/Materials | Entered Storage 3067 | -8/Storage | Met a pair of Derelict thieves 3270 | -8/Storage | Build established: Tank 3589 | -8/Storage | Build established: Gunner 3612 | -8/Storage | Discovered new exit (range 15) 3655 | -8/Storage | Assisted by bots powering up and referring to "LRC-V3" 3775 | -8/Storage | First assault squad dispatched 3876 | -8/Storage | Lost 9 allies 3925 | -8/Storage | Destroyed 17 combat bots 3952 | -8/Storage | Lost 11 parts (1p4n3u3w) 4304 | -8/Storage | Used back door to open Recycling access 4304 | -8/Storage | Discovered new exit (range 5) 4312 | -8/Storage | Entered Recycling 4625 | -8/Recycling | Scanned before Scraplab entrance 4649 | -8/Recycling | Entered Scraplab 4661 | -8/Recycling | Discovered new exit (range 2) 4663 | -8/Recycling | Entered Scraptown 4865 | -8/Scraptown | Visited Shadow of the Wyrm 4896 | -8/Scraptown | Visited CR-KLE's Repair Center 4921 | -8/Scraptown | Visited Awakened 4932 | -8/Scraptown | Visited Cyclists 4955 | -8/Scraptown | Visited UFD Registry 4955 | -8/Scraptown | Registered with UFD as "Railshell" 4957 | -8/Scraptown | Build established: Mutant 4986 | -8/Scraptown | Visited A0-MCA Data Center 5011 | -8/Scraptown | Visited DA-N13 Charitable Foundation 5040 | -8/Scraptown | Visited Observation Area 5059 | -8/Scraptown | Visited Abandonware Association 5087 | -8/Scraptown | Visited Infowarlord's Domain 5107 | -8/Scraptown | Visited Science Testing Area 5121 | -8/Scraptown | Visited Cartography Club 5150 | -8/Scraptown | Visited Botcube Research 5177 | -8/Scraptown | Visited Scrap Suit Storage 5487 | -8/Scraptown | System corruption cleaned by C-Scrubber 5805 | -8/Scraptown | Build established: Tank 5860 | -8/Scraptown | Found DCF Scrap (28 items) 5916 | -8/Scraptown | Learned abandonware demo "OVRCLOCK.EXE" 5922 | -8/Scraptown | Learned abandonware demo "TRNCOAT.EXE" 6645 | -8/Scraptown | Found Scrap Suit 6701 | -8/Scraptown | Build established: Mutant 7231 | -8/Scraptown | Discovered new exit (range 11) 7486 | -8/Scraptown | Found Scrap Suit 7556 | -8/Scraptown | Found Lrg. Botcube 7717 | -8/Scraptown | Lrg. Botcube activated 7745 | -8/Scraptown | Lrg. Botcube completed mutation into treaded form, armed with 4 guns. 7819 | -8/Scraptown | Found Scrap Suit 8111 | -8/Scraptown | Found Deep Structural Scanner 8117 | -8/Scraptown | Learned location of Storage (-8) 8117 | -8/Scraptown | Learned location of Archives (-4) 8117 | -8/Scraptown | Learned 16 Factory zone layouts 8117 | -8/Scraptown | Learned 4 Storage zone layouts 8117 | -8/Scraptown | Learned 8 Factory zone layouts 8117 | -8/Scraptown | Learned 4 Recycling zone layouts 8117 | -8/Scraptown | Learned 8 Lower Caves zone layouts 8117 | -8/Scraptown | Learned 16 Proximity Caves zone layouts 8117 | -8/Scraptown | Learned 4 Armory zone layouts 8117 | -8/Scraptown | Learned Materials emergency access door positions 8117 | -8/Scraptown | Learned location of 2 exits from Factory 8117 | -8/Scraptown | Learned location of 2 exits from Lower Caves 8117 | -8/Scraptown | Learned location of 2 exits from Proximity Caves 8117 | -8/Scraptown | Identified exit to Factory 8117 | -8/Scraptown | Learned 12 Proximity Caves zone layouts 8165 | -8/Scraptown | Found Scrap Suit 8297 | -8/Scraptown | Found Spectral Analyzer 8433 | -8/Scraptown | Build established: Scrapper 8510 | -8/Scraptown | CR-KLE repaired 3 parts 8714 | -8/Scraptown | Given an A- rating by A0-MCA 8716 | -8/Scraptown | Found A0-MCA's Component Scanner 8797 | -8/Scraptown | Met Optimus 8797 | -8/Scraptown | Accepted into 0bPrime 8883 | -8/Scraptown | Entered Factory 8883 | -6/Factory | Accompanied by 1 ally 8883 | -6/Factory | Evolved 4 slots: Power x1, Utility x3 8884 | -6/Factory | Identified exit to Factory 8884 | -6/Factory | Identified exit to Lower Caves 9021 | -6/Factory | Repaired Enh. Autogun 9159 | -6/Factory | Garrison activated, responded to threat 9175 | -6/Factory | Build established: Tank 9242 | -6/Factory | Identified exit to Garrison 9242 | -6/Factory | Entered Garrison 9242 | -6/Garrison | Accompanied by 1 ally 9318 | -6/Garrison | Triggered checkpoint 9556 | -6/Garrison | Triggered checkpoint 9564 | -6/Garrison | Build established: Gunner 9675 | -6/Garrison | Discovered new exit (range 9) 9683 | -6/Garrison | Spotted B-75 Beast 9711 | -6/Garrison | Destroyed B-75 Beast 9920 | -6/Garrison | Lost 5 parts (2p1u2w) 10143 | -6/Garrison | Triggered checkpoint 10336 | -6/Garrison | Triggered checkpoint 10371 | -6/Garrison | Triggered checkpoint 10411 | -6/Garrison | Destroyed 8 combat bots 10452 | -6/Garrison | Build established: Scavenger-Mutant 10537 | -6/Garrison | Garrison Relay disabled 10554 | -6/Garrison | Discovered new exit (range 19) 10779 | -6/Garrison | Rewired B-75 Beast 10896 | -6/Garrison | Build established: Scavenger-Tank 10955 | -6/Garrison | Spotted B-75 Beast 10972 | -6/Garrison | Allies destroyed B-75 Beast 11254 | -6/Garrison | Build established: Scavenger-Mutant 11265 | -6/Garrison | Discovered new exit (range 11) 11512 | -6/Garrison | Triggered checkpoint 11558 | -6/Garrison | Discovered new exit (range 65) 11558 | -6/Garrison | Discovered new exit (range 27) 11558 | -6/Garrison | Discovered new exit (range 78) 12006 | -6/Garrison | Triggered checkpoint 12255 | -6/Garrison | Murdered *warbot at home 12255 | -6/Garrison | Destroyed *warbot at home 12261 | -6/Garrison | Found Lrg. Botcube 12306 | -6/Garrison | Build established: Tank 12850 | -6/Garrison | Destroyed B-90 Cyclops 12937 | -6/Garrison | Build established: Scavenger-Tank 13698 | -6/Garrison | Found Hvy. Reflective Plating 13830 | -6/Garrison | Lrg. Botcube activated 13862 | -6/Garrison | Lrg. Botcube completed mutation into treaded form, armed with 4 guns. 14137 | -6/Garrison | Entered Factory 14137 | -6/Factory | Accompanied by 1 ally 14454 | -6/Factory | Noticed a derelict Sapper rigging charges 14467 | -6/Factory | Build established: Scavenger-Skirmisher 14487 | -6/Factory | First assault squad dispatched 14498 | -6/Factory | Spotted B-75 Beast 14586 | -6/Factory | Destroyed B-75 Beast 14740 | -6/Factory | High security lockdown imminent 14820 | -6/Factory | High security lockdown engaged 14831 | -6/Factory | Core integrity fell below 50% 14867 | -6/Factory | Discovered exit to Factory (range 10) 14912 | -6/Factory | Entered another Factory area 14912 | -5/Factory | Accompanied by 1 ally 14912 | -5/Factory | Evolved 2 slots: Utility x2 15162 | -5/Factory | Sucked down chute 15162 | -5/Factory | Entered Waste 15168 | -5/Waste | Found Gamma Bomb Array 15177 | -5/Waste | EMP discharged 15190 | -5/Waste | Spotted C-40 Crusher 15192 | -5/Waste | 1 allies followed down the chute 15203 | -5/Waste | Destroyed C-40 Crusher 15218 | -5/Waste | Spotted C-40 Crusher 15231 | -5/Waste | Spotted C-40 Crusher 15243 | -5/Waste | Spotted C-40 Crusher 15247 | -5/Waste | Destroyed C-40 Crusher 15275 | -5/Waste | Spotted C-40 Crusher 15277 | -5/Waste | EMP discharged 15277 | -5/Waste | System corruption reached 10% 15285 | -5/Waste | Found Damper Plating 15286 | -5/Waste | Allies destroyed C-40 Crusher 15303 | -5/Waste | Destroyed C-40 Crusher 15329 | -5/Waste | Destroyed C-40 Crusher 15345 | -5/Waste | Spotted C-40 Crusher 15352 | -5/Waste | Found Damper Plating 15377 | -5/Waste | EMP discharged 15430 | -5/Waste | Discovered new exit (range 12) 15474 | -5/Waste | Entered Factory 15474 | -5/Factory | Accompanied by 1 ally 15494 | -5/Factory | Build established: Scavenger-Gunner 15803 | -5/Factory | Discovered new exit (range 23) 16124 | -5/Factory | Discovered new exit (range 7) 16299 | -5/Factory | Identified exit to Upper Caves 16461 | -5/Factory | Scrapoids reinforcements arrived? 16512 | -5/Factory | Build established: Scavenger-Tank 16529 | -5/Factory | Found Lrg. Botcube 16554 | -5/Factory | Lost 6 allies 16674 | -5/Factory | First assault squad dispatched 16693 | -5/Factory | Scrapoid reinforcements arrived 16709 | -5/Factory | Found Scrap Suit 16925 | -5/Factory | Entered Upper Caves 16925 | -5/Upper Caves | Accompanied by 4 allies 17256 | -5/Upper Caves | Build established: Scavenger-Gunner 17258 | -5/Upper Caves | Learned Factory security intel 17322 | -5/Upper Caves | Attracted the attention of an 0b10 checkpoint 17638 | -5/Upper Caves | Found Scrap Suit 17705 | -5/Upper Caves | Murdered 3 allies 17788 | -5/Upper Caves | Found Scrap Suit 17808 | -5/Upper Caves | Found Scrap Suit 17972 | -5/Upper Caves | Lrg. Botcube activated 18002 | -5/Upper Caves | Lrg. Botcube completed mutation into wheeled form, armed with 4 guns. 18165 | -5/Upper Caves | Build established: Scavenger-Mutant 18192 | -5/Upper Caves | Encountered a Warlord checkpoint 18192 | -5/Upper Caves | Discovered new exit (range 10) 18195 | -5/Upper Caves | Learned location of 1 exit from Factory 18206 | -5/Upper Caves | Entered another Upper Caves area 18206 | -5/Upper Caves | Accompanied by 1 ally 18263 | -5/Upper Caves | Spotted B-75 Beast 18483 | -5/Upper Caves | Encountered a Warlord checkpoint 18574 | -5/Upper Caves | Attracted the attention of an 0b10 checkpoint 18660 | -5/Upper Caves | Discovered new exit (range 7) 18669 | -5/Upper Caves | Entered Zhirov 18669 | -5/Zhirov | Accompanied by 1 ally 18671 | -5/Zhirov | Discovered new exit (range 3) 18692 | -5/Zhirov | Met Zhirov 18723 | -5/Zhirov | Found Alien Artifact 18723 | -5/Zhirov | Identified Integrated Dissipator 18723 | -5/Zhirov | Installed Integrated Dissipator, increased core heat dissipation (+20) 18792 | -5/Zhirov | Found Alien Artifact 18821 | -5/Zhirov | Learned location of Quarantine (-3) 18821 | -5/Zhirov | Learned location of Testing (-2) 18821 | -5/Zhirov | Learned location of Command (-1) 18829 | -5/Zhirov | Zhirov requested help retrieving the SGEMP Prototype 18872 | -5/Zhirov | Entered Proximity Caves 18872 | -4/Proximity Caves | Accompanied by 1 ally 18873 | -4/Proximity Caves | Identified exit to Factory 19033 | -4/Proximity Caves | Found DCF Scrap (11 items) 19167 | -4/Proximity Caves | Entered Factory 19167 | -4/Factory | Accompanied by 1 ally 19167 | -4/Factory | Evolved 2 slots: Utility x1, Weapon x1 19168 | -4/Factory | Identified exit to Extension 19697 | -4/Factory | Repaired Gamma Bomb Array 19757 | -4/Factory | Build established: Scavenger-Gunner 20031 | -4/Factory | Entered Extension 20031 | -4/Extension | Accompanied by 1 ally 20200 | -4/Extension | Build established: Scavenger-Tank 20331 | -4/Extension | Disrupted transfer network 20549 | -4/Extension | Spotted B-86 Titan 20562 | -4/Extension | Rescued A7 20692 | -4/Extension | Energy Cycler disabled 20693 | -4/Extension | Rescued a captive Derelict 20693 | -4/Extension | Rescued a captive Derelict 20694 | -4/Extension | Rescued a captive Derelict 20695 | -4/Extension | Rescued a captive Derelict 20697 | -4/Extension | Rescued a captive Derelict 20698 | -4/Extension | Rescued a captive Derelict 20705 | -4/Extension | Rescued a captive Derelict 20706 | -4/Extension | Rescued a captive Derelict 20863 | -4/Extension | Build established: Scavenger-Gunner 20946 | -4/Extension | Spotted B-86 Titan 20948 | -4/Extension | Destroyed B-86 Titan 20960 | -4/Extension | Discovered new exit (range 16) 20967 | -4/Extension | Allies destroyed B-86 Titan 21031 | -4/Extension | First assault squad dispatched 21079 | -4/Extension | System corruption reached 10% 21298 | -4/Extension | Extracted ID and sensor layout for unrecognized location from A7's data core 21321 | -4/Extension | High security lockdown imminent 21401 | -4/Extension | High security lockdown engaged 21408 | -4/Extension | Discovered new exit (range 10) 21409 | -4/Extension | Discovered new exit (range 6) 21413 | -4/Extension | Lost 3 allies 21445 | -4/Extension | Found Lrg. Botcube 21450 | -4/Extension | Destroyed 18 combat bots 21450 | -4/Extension | Identified exit to Cetus 21454 | -4/Extension | Entered Cetus 21454 | -4/Cetus | Accompanied by 5 allies 21464 | -4/Cetus | Lost 5 allies 21468 | -4/Cetus | Spotted Cetus Guard 21468 | -4/Cetus | Spotted Cetus Guard 21469 | -4/Cetus | Spotted Cetus Guard 21473 | -4/Cetus | Spotted Cetus Guard 21473 | -4/Cetus | Destroyed Cetus Guard 21477 | -4/Cetus | Lost 14 parts (4p4u6w) 21483 | -4/Cetus | Destroyed Cetus Guard 21487 | -4/Cetus | Allies destroyed Cetus Guard 21490 | -4/Cetus | Allies destroyed Cetus Guard 21518 | -4/Cetus | Lost 4 allies 21681 | -4/Cetus | Discovered new exit (range 24) 21710 | -4/Cetus | Spotted Cetus Guard 21710 | -4/Cetus | Spotted Cetus Guard 21714 | -4/Cetus | Spotted Cetus Guard 21721 | -4/Cetus | Allies destroyed Cetus Guard 21736 | -4/Cetus | Destroyed Cetus Guard 21736 | -4/Cetus | Spotted Cetus Guard 21752 | -4/Cetus | Destroyed Cetus Guard 21778 | -4/Cetus | Destroyed Cetus Guard 21781 | -4/Cetus | Discovered new exit (range 24) 21798 | -4/Cetus | Met Revision 17 21804 | -4/Cetus | Lost 3 parts (1p1u1w) 22172 | -4/Cetus | Identified exit to Archives 22176 | -4/Cetus | Entered Archives 22306 | -4/Archives | Lost 4 parts (1p3u) 22354 | -4/Archives | Discovered new exit (range 22) 22377 | -4/Archives | Discovered new exit (range 24) 22414 | -4/Archives | Discovered new exit (range 17) 23058 | -4/Archives | Lrg. Botcube activated 23088 | -4/Archives | Lrg. Botcube completed mutation into treaded form, armed with 4 guns. 23314 | -4/Archives | Build established: Scavenger-Tank 23707 | -4/Archives | Build established: Scavenger-Gunner 23770 | -4/Archives | Identified exit to Hub_04(d) 23774 | -4/Archives | Entered Hub_04(d) 23774 | -4/Hub_04(d) | Accompanied by 1 ally 23881 | -4/Hub_04(d) | Found Lrg. Botcube 23997 | -4/Hub_04(d) | Discovered new exit (range 9) 24030 | -4/Hub_04(d) | Core integrity fell below 50% 24135 | -4/Hub_04(d) | Identified exit to Research 24257 | -4/Hub_04(d) | Network Hub disabled 24283 | -4/Hub_04(d) | Spotted Lightning 24289 | -4/Hub_04(d) | Spotted Lightning 24289 | -4/Hub_04(d) | Entered Research 24289 | -3/Research | Evolved 2 slots: Power x1, Utility x1 24290 | -3/Research | Identified exit to Quarantine 24489 | -3/Research | Revision forces began assault on 0b10 24503 | -3/Research | Met up with Revision 17++ 24859 | -3/Research | Lost 3 parts (1p1u1w) 24989 | -3/Research | Research terminal network offline 25056 | -3/Research | Lost 4 parts (2p2w) 25087 | -3/Research | Scrapoid reinforcements arrived 25119 | -3/Research | Found Scrap Suit 25132 | -3/Research | Found Scrap Suit 25152 | -3/Research | Lost 4 allies 25472 | -3/Research | Murdered Revision 17++ 25643 | -3/Research | Found Scrap Suit 25656 | -3/Research | Found Scrap Suit 25815 | -3/Research | Scrapoids reinforcements arrived? 25866 | -3/Research | Build established: Scavenger-Scrapper 26000 | -3/Research | Murdered 5 allies 26223 | -3/Research | Spotted Striker 26224 | -3/Research | Spotted Striker 26241 | -3/Research | Spotted Striker 26270 | -3/Research | Destroyed Striker 26277 | -3/Research | Destroyed Striker 26283 | -3/Research | Destroyed Striker 26387 | -3/Research | Lrg. Botcube activated 26413 | -3/Research | Lrg. Botcube completed mutation into wheeled form, armed with 4 guns. 26417 | -3/Research | Found Scrap Suit 27755 | -3/Research | Spotted Striker 27759 | -3/Research | Spotted Striker 27773 | -3/Research | Destroyed Striker 27775 | -3/Research | Destroyed Striker 27839 | -3/Research | Spotted Striker 27848 | -3/Research | Spotted Striker 27870 | -3/Research | Destroyed Striker 27875 | -3/Research | Destroyed Striker 27905 | -3/Research | Lost 3 parts (2u1w) 28022 | -3/Research | Spotted Striker 28069 | -3/Research | Murdered *princess 28069 | -3/Research | Destroyed *princess 28113 | -3/Research | Spotted Striker 28115 | -3/Research | Found Lrg. Botcube 28122 | -3/Research | Entered Quarantine 28333 | -3/Quarantine | Garrison activated, responded to threat 28550 | -3/Quarantine | Garrison activated, responded to threat 28550 | -3/Quarantine | Scanned by Researcher 28592 | -3/Quarantine | System corruption reached 10% 28612 | -3/Quarantine | Released all parts (6) 28613 | -3/Quarantine | Core integrity fell below 50% 28622 | -3/Quarantine | First assault squad dispatched 28635 | -3/Quarantine | Spotted Alpha 7 28643 | -3/Quarantine | Lost 19 parts (3p6u10w) 28664 | -3/Quarantine | Discovered new exit (range 12) 28682 | -3/Quarantine | Entered Research 28682 | -2/Research | Evolved 2 slots: Utility x1, Weapon x1 28683 | -2/Research | Identified exit to Access 28722 | -2/Research | Entered Access 28722 | -1/Access | Evolved 2 slots: Propulsion x2 28935 | -1/Access | Build established: Mutant 28968 | -1/Access | Lrg. Botcube activated 28972 | -1/Access | Lrg. Botcube completed mutation into hovering form (unarmed). 29004 | -1/Access | Core integrity fell below 50% 29006 | -1/Access | System corruption reached 10% 29030 | -1/Access | Lost 5 parts (1p2n2u) 29051 | -1/Access | Core integrity fell below 20% 29070 | -1/Access | Destroyed by G-73 Enforcer with Phase Gun Last Messages --------------- 29060_ Field strength at 84. 29061_ C-30 ARC bursts open, deploying its payload. 29061_ H-88 Terminator unfolds itself. 29061_ Penetrated by Slug. 29061_ K-01 Serf destroyed. 29061_ Penetrated by Slug. 29061_ Field strength at 51. 29062_ Field strength at 35. 29062_ Knocked back. 29063_ Acquired 14 matter. 29064_ Slug penetrates Wall. 29064_ C-30 ARC bursts open, deploying its payload. 29064_ G-73 Enforcer unfolds itself. 29065_ Acquired 95 matter. 29065_ Penetrated by Slug. 29066_ System corrupted: Slammed into wall. 29067_ Penetrated by Slug. 29067_ Q-thruster destroyed. 29067_ Slug penetrates Wall. 29069_ Acquired 104 matter. Map ----- +----------------------------------------------------+ | ?????????????????????????????????????????????????? | | ?????????????????????????????????????????????????? | | ?????????????????????????????????????????????????? | | ?????????????????????????????????????????????????? | | ?????????????????????????????????????????????????? | | ?????????????????????????????????????????????????? | | ?????????????????????????????????????????????????? | | ?????????????????????????????????????????????????? | | ?????????????????????????????????????????????????? | | ?????? ?????????????????????????????????????? | | ????# ????????????????????????????????????? | | ????# #????????????????????????????????????? | | ????# #????????????????????????????????????? | | ????# #????????????????????????????????????? | | ????# +????????????????????????????????????? | | ????# #????????????????????????????????????? | | ????# #????????????????????????????????????? | | ????# #????????????????????????????????????? | | ??# #????????????????????????????????????? | | ?# #????????????????????????????????????? | | ? # #????????????????????????????????????? | | ??? + +????????????????????????????????????? | | ????# #????????????????????????????????????? | | ????# H #???????????????????""G??????????????? | | ##### ^"############### """ ""????????????? | | # %^ p p h hgg g@g ????????? | | # = ################ ????????? | | # #??????????????????? ????????? | | # #??????????????????????? ?????????? | | ?# #????????????????????????????????????? | | ?# #????????????????????????????????????? | | #+### #????????????????????????????????????? | | #????????????????????????????????????? | | #????????????????????????????????????? | | #????????????????????????????????????? | | +????????????????????????????????????? | | #????????????????????????????????????? | | #????????????????????????????????????? | | #????????????????????????????????????? | | ########????????????????????????????????????? | | #???????????????????????????????????????????? | | #???????????????????????????????????????????? | | +???????????????????????????????????????????? | | #???????????????????????????????????????????? | | #???????????????????????????????????????????? | | #???????????????????????????????????????????? | | ######???????????????????????????????????????????? | | ?????????????????????????????????????????????????? | | ?????????????????????????????????????????????????? | | ?????????????????????????????????????????????????? | +----------------------------------------------------+ Best States ------------- Heat Dissipation 176 Energy Generation 61 Energy Capacity 580 Matter Stores 300 Matter Capacity 300 Sight Range 24 Robot Scan Range 16 Terrain Scan Density 10 Jamming Range 16 Base Temperature (-) 200 Armor Coverage 1600 Resistance: TH 20 Resistance: EM 90 Melee Speed Boost 20 Evasion (%) 62 Targeting Accuracy 8 Target Analysis 8 Core Analysis 9 Recoil Reduction 4 Particle Charging 30 Salvage Targeting 8 Offensive Hacking 24 Defensive Hacking 12 Authchip Count 2 Item Schematics ----------------- Assault Drone Bay | -5/Zhirov | Free Exp. Heat Sink | -5/Zhirov | Free Exp. Optical Array | -5/Zhirov | Free Imp. Arc Thrower | -5/Zhirov | Free Robot Schematics ------------------ None Fabricated ------------ Nothing Repaired ---------- Enh. Autogun | 6% | -6/Factory Gamma Bomb Array | 11% | -4/Factory Alien Tech Used ----------------- Integrated Dissipator Achievements -------------- None Challenges ------------ None Game ------ Seed DirectedBladeDeconstructor Manual? 0 Play Time 03:38:46 Cumulative 370.6 hours Start 2025.08.09 @ 15:43:09 End 2025.08.10 @ 21:04:02 Sessions 10 Manual Loads 0 Difficulty Rogue Special Mode None Game No. 346 Rogue 310 Adventurer 36 Explorer 0 Win Type - Total 14 Types 6/0/8/0/0/0/0/0/0/0 Lore% 71 Gallery% 85 Achievement% 75 Wizard Run 0 Options --------- Layout 0 ASCII 0 Keyboard 0 Movement Mouse Keybinds 0 Fullscreen 1 Font 18/SmallcapsGlow Map View 76x50 Zoom Use 0% Tactical HUD 1 Map Filters NONE Filters SHIFT_HUE(315) Steam 1 RUN: 4b691420-26d7-4317-972a-10c5b08fcef8